bitfinex-derivatives/quotes_SOLF0:USTF0_20250821
["timestamp","ask_amount","ask_price","bid_price","bid_amount"]
[1755778420216,3.94369851,183.98,183.97,5.4358]
[1755778421319,3.94369851,183.98,183.97,8.4858]
[1755778421514,3.94369851,183.98,183.96,8.4861]
[1755778421718,3.94369851,183.97,183.95,133.64]
[1755778422021,3.94369851,183.96,183.95,133.64]
[1755778422620,3.05,184.02,183.95,133.64]
[1755778422826,6.99287766,184.01,183.97,8.4857]
[1755778423015,3.94287766,184.0,183.97,8.4857]
[1755778423219,3.94287766,183.99,183.98,3.05]
[1755778424026,3.94287766,183.99,183.98,8.4856]
[1755778424226,3.05,184.04,183.98,3.05]
[1755778424525,6.993328,184.03,184.0,8.4847]
[1755778424724,3.943328,184.02,184.0,8.4847]
[1755778424924,3.943328,184.01,184.0,3.05]
[1755778425224,3.943328,184.01,184.0,8.485]
[1755778425426,3.943328,184.01,184.0,5.435]
[1755778426429,3.943328,184.01,184.0,8.485]
[1755778426622,3.05,184.04,184.01,5.4347]
[1755778426822,3.94213133,184.03,184.01,5.4347]
[1755778427024,3.94213133,184.02,184.01,5.4347]
[1755778427427,3.94213133,184.02,184.01,8.4847]
[1755778428327,3.05,184.06,184.02,8.4844]
[1755778428525,3.94188692,184.05,184.0,3.05]
[1755778428721,3.94188692,184.04,184.03,8.4839]
[1755778428926,3.94188692,184.04,184.01,3.05]
[1755778429229,3.94188692,184.03,184.01,3.05]
[1755778429526,6.99124546,184.02,184.0,133.64]
[1755778429727,3.05,184.02,184.0,133.64]
[1755778429920,3.05,184.05,184.0,136.69]
[1755778430118,3.94099008,184.04,184.0,136.69]
[1755778430319,3.94099008,184.03,184.0,136.69]
[1755778430522,3.94099008,184.02,184.0,136.69]
[1755778430723,3.05,184.04,184.0,136.69]
[1755778430924,3.94078154,184.03,184.0,136.69]
[1755778431126,3.94078154,184.02,184.0,136.69]
[1755778431322,85.02575669,184.08,184.01,3.05]
[1755778431519,3.93996278,184.07,184.01,3.05]
[1755778431724,6.98996278,184.06,184.02,3.05]
[1755778431924,3.93996278,184.05,184.02,8.4841]
[1755778432127,3.93996278,184.04,184.02,8.4841]
[1755778432327,3.93996278,184.03,184.02,8.4841]
[1755778432730,3.93996278,184.03,184.01,5.4346]
[1755778432929,2.89,184.03,184.01,5.4346]
[1755778433230,84.342543,184.08,184.01,5.4346]
[1755778433430,2.89,184.06,184.01,5.4346]
[1755778433629,6.82918991,184.05,184.01,8.3246]
[1755778433832,2.89,184.03,184.0,139.0749]
[1755778434027,6.82918991,184.02,183.98,5.25678631]
[1755778434332,3.938816,184.01,183.99,5.4351]
[1755778434631,2.89,184.02,183.99,2.89]
[1755778434830,3.93878832,184.01,183.99,2.89]
[1755778435031,2.89,184.02,183.99,2.89]
[1755778435231,3.93878832,184.01,183.99,2.89]
[1755778435421,2.89,184.02,184.0,5.4348]
[1755778435622,3.93902534,184.01,184.0,8.3248]
[1755778435821,2.89,184.04,184.01,2.89]
[1755778436028,3.93895331,184.03,184.01,8.3246]
[1755778436332,3.93895331,184.02,184.01,8.3246]
[1755778436532,3.93895331,184.03,184.01,8.3246]
[1755778436735,3.93895331,184.02,184.01,8.3246]
[1755778437230,3.93895331,184.02,184.0,5.4349]
[1755778437433,2.89,184.03,184.0,5.4349]
[1755778437633,3.93929428,184.02,184.0,5.4349]
[1755778437829,2.89,184.01,183.99,5.4352]
[1755778438633,2.89,184.01,183.98,133.62]
[1755778438833,3.93860476,184.0,183.97,133.6]
[1755778439136,3.93847113,183.99,183.94,133.6]
[1755778439334,2.36678631,184.02,183.94,133.6]
[1755778439335,6.82838448,183.98,183.94,136.49]
[1755778439536,2.89,184.01,183.95,2.89]
[1755778439737,3.93838267,184.0,183.94,136.49]
[1755778440037,3.93838267,183.99,183.94,135.96678631]
[1755778440233,3.93838267,183.98,183.97,8.3257]
[1755778440428,2.89,184.04,183.97,2.89]
[1755778440629,3.93878752,184.03,183.99,2.36678631]
[1755778440935,84.342543,184.08,184.02,8.3244]
[1755778441134,2.89,184.05,184.02,8.3244]
[1755778441338,3.93917835,184.04,184.02,8.3244]
[1755778441537,3.93917835,184.03,184.02,8.3244]
[1755778441839,3.93917835,184.03,184.01,5.4346]
[1755778442039,2.89,184.03,184.01,5.4346]
[1755778442331,84.342543,184.08,183.99,138.85678631]
[1755778442332,2.89,184.07,183.99,138.85678631]
[1755778442531,3.9488704,184.06,184.01,5.4347]
[1755778442737,2.89,184.04,184.01,5.4347]
[1755778443035,3.9488704,184.03,184.02,8.3244]
[1755778443237,3.9488704,184.03,184.02,2.89]
[1755778443637,2.89,184.07,184.04,5.4337]
[1755778443833,3.94905761,184.06,184.04,2.89]
[1755778444034,2.89,184.11,184.04,133.6]
[1755778444238,3.94954035,184.1,184.08,5.4326]
[1755778444537,3.94954035,184.09,184.08,5.4326]
[1755778444734,3.94954035,184.09,184.07,5.4329]
[1755778445038,2.89,184.07,184.04,133.6]
[1755778445238,2.89,184.07,184.04,136.49]
[1755778445440,2.89,184.07,184.05,5.4335]
[1755778445643,3.94631368,184.06,184.04,133.6]
[1755778445839,2.89,184.1,184.04,133.6]
[1755778446036,3.94612924,184.09,184.04,133.6]
[1755778446231,2.89,184.07,184.04,133.6]
[1755778446536,6.83612924,184.06,184.02,2.89]
[1755778446735,2.89,184.06,184.02,5.4342]
[1755778447042,2.89,184.06,184.03,2.89]
[1755778447944,2.36678631,184.11,184.04,2.89]
[1755778447945,3.94492705,184.05,184.04,2.89]
[1755778448244,3.94492705,184.05,184.03,2.89]
[1755778448535,2.89,184.07,184.03,2.89]
[1755778448742,3.94460075,184.06,184.04,5.4338]
[1755778448942,3.94460075,184.05,184.04,5.4338]
[1755778449141,3.94460075,184.05,184.03,2.89]
[1755778449342,2.89,184.07,184.03,2.89]
[1755778449546,3.9448379,184.06,184.03,8.3239]
[1755778449750,3.9448379,184.05,184.03,8.3239]
[1755778450039,2.89,184.04,184.01,5.4347]
[1755778450946,2.89,184.06,184.0,139.035]
[1755778451247,2.89,184.04,184.0,141.925]
[1755778451442,2.89,184.04,184.01,5.4347]
[1755778451642,2.89,184.07,184.03,2.89]
[1755778451843,3.94529821,184.06,184.0,133.6]
[1755778452044,6.83529821,184.05,184.01,5.4345]
[1755778452347,6.83529821,184.04,184.01,2.89]
[1755778452550,3.94519289,184.03,184.0,139.0349]
[1755778452849,2.89,184.03,184.0,139.0349]
[1755778453043,2.89,184.03,184.0,141.9249]
[1755778453243,5.25678631,184.07,184.0,136.49]
[1755778453445,3.94495648,184.06,184.0,136.49]
[1755778453743,3.94495648,184.05,184.03,2.89]
[1755778453947,3.94495648,184.04,184.03,2.89]
[1755778454350,3.94495648,184.05,184.03,8.3241]
[1755778454550,3.94495648,184.04,184.03,8.3241]
[1755778454950,3.94495648,184.05,184.03,8.3241]
[1755778455150,3.94495648,184.04,184.03,8.3241]
[1755778455456,3.94558742,184.05,184.04,8.3238]
[1755778455755,3.94562457,184.07,184.04,8.3238]
[1755778456053,3.94562457,184.06,184.04,2.89]
[1755778456249,3.94562457,184.05,184.01,2.89]
[1755778456556,2.89,184.08,184.02,2.89]
[1755778456749,2.36678631,184.1,184.03,5.434]
[1755778456750,3.94606374,184.07,184.03,5.434]
[1755778456950,6.83606374,184.06,184.03,5.434]
[1755778457146,3.94606374,184.05,184.03,5.434]
[1755778457351,2.89,184.06,184.03,8.324]
[1755778457552,3.94608976,184.05,184.03,8.324]
[1755778457752,2.89,184.06,184.03,8.324]
[1755778457947,3.94608646,184.05,184.03,8.324]
[1755778458158,2.89,184.06,184.03,8.324]
[1755778458354,3.94608654,184.05,184.04,5.4338]
[1755778458560,3.94608654,184.05,184.04,8.3238]
[1755778460360,3.94608654,184.05,184.03,5.434]
[1755778460559,2.89,184.09,184.03,5.434]
[1755778460762,3.94587301,184.08,184.03,5.434]
[1755778460960,2.89,184.06,184.03,5.434]
[1755778461259,3.94587301,184.05,184.03,5.434]
[1755778461562,2.36678631,184.1,184.02,5.4343]
[1755778461762,2.89,184.05,184.02,5.4343]
[1755778461953,3.94580693,184.04,184.02,8.3243]
[1755778462157,2.36678631,184.1,184.01,5.4347]
[1755778462353,2.89,184.04,184.01,5.4347]
[1755778462563,2.89,184.04,184.01,8.3247]
[1755778463265,2.89,184.04,184.02,5.4344]
[1755778464166,2.89,184.04,184.01,8.3246]
[1755778464566,2.36678631,184.1,184.02,8.4542]
[1755778464763,6.83698006,184.09,184.02,8.4542]
[1755778464964,3.94698006,184.08,184.02,8.4542]
[1755778465166,2.89,184.06,184.02,8.4542]
[1755778465367,3.94698006,184.05,184.02,8.4542]
[1755778465566,6.83698006,184.04,184.01,5.4346]
[1755778465765,3.94698006,184.03,184.0,133.6]
[1755778466067,2.89,184.06,184.02,3.02]
[1755778466369,6.83745656,184.05,184.02,8.4542]
[1755778466567,3.94745656,184.04,184.02,8.4542]
[1755778466864,3.94745656,184.03,184.02,8.4542]
[1755778467267,3.94745656,184.04,184.02,8.4542]
[1755778467469,3.94745656,184.03,184.02,8.4542]
[1755778467972,3.94745656,184.03,184.01,5.4346]
[1755778468166,3.94745656,184.02,184.01,5.4346]
[1755778468369,3.94745656,184.03,184.01,8.4546]
[1755778468568,3.94745656,184.02,184.01,8.4546]
[1755778468964,3.94745656,184.02,184.0,139.0349]
[1755778469169,3.94745656,184.01,184.0,133.6]
[1755778469364,3.94745656,184.01,183.98,3.02]
[1755778469567,3.94745656,184.0,183.99,5.4352]
[1755778470068,3.94745656,184.0,183.98,5.4355]
[1755778470260,2.89,184.01,183.98,5.4355]
[1755778470466,3.95028731,184.0,183.97,3.02]
[1755778470666,2.89,184.01,183.98,8.4555]
[1755778470868,3.95026858,184.0,183.98,8.4555]
[1755778471067,2.89,184.01,183.98,8.4555]
[1755778471274,3.95026708,184.0,183.98,8.4555]
[1755778471474,2.89,184.01,183.98,5.4355]
[1755778471773,2.89,183.99,183.97,5.4358]
[1755778472072,3.9501228,183.98,183.97,5.4358]
[1755778473375,2.89,183.99,183.97,5.4358]
[1755778474074,6.84170619,183.98,183.96,133.56]
[1755778474274,2.36678631,184.02,183.91,2.36678631]
[1755778474275,2.89,184.01,183.91,2.36678631]
[1755778474476,3.95070952,184.0,183.92,136.56]
[1755778474677,3.95070952,183.99,183.92,136.56]
[1755778474877,3.95070952,183.98,183.93,3.02]
[1755778475178,3.95070952,183.97,183.92,133.54]
[1755778475377,2.89,184.01,183.94,3.02]
[1755778475672,2.89,183.99,183.96,5.4362]
[1755778475874,3.94964938,183.98,183.96,5.4362]
[1755778476074,2.89,183.99,183.96,5.4362]
[1755778476279,3.94964938,183.98,183.96,5.4362]
[1755778476478,2.89,183.99,183.96,5.4362]
[1755778476681,3.94873955,183.98,183.97,8.4557]
[1755778476979,2.89,184.04,183.97,3.02]
[1755778477287,3.94892083,184.03,183.97,5.4356]
[1755778477577,3.94892083,184.02,183.94,2.36678631]
[1755778477778,3.94892083,184.01,183.94,2.36678631]
[1755778477978,3.94892083,184.0,183.94,2.36678631]
[1755778478180,3.94892083,183.99,183.94,2.36678631]
[1755778478376,2.36678631,184.05,183.94,2.36678631]
[1755778478573,2.36678631,184.03,183.92,133.54]
[1755778478769,2.36678631,184.01,183.92,133.54]
[1755778478974,3.9477009,184.0,183.92,133.54]
[1755778479173,3.9477009,183.99,183.94,5.4366]
[1755778479373,3.9477009,183.98,183.94,5.4366]
[1755778479574,3.9477009,183.97,183.95,5.4363]
[1755778479774,2.36678631,184.01,183.92,133.54]
[1755778479974,3.94633859,184.0,183.92,133.54]
[1755778480174,3.94633859,183.99,183.94,5.4368]
[1755778480473,3.94633859,183.98,183.94,5.4368]
[1755778480674,3.94633859,183.97,183.93,5.437]
[1755778480877,2.36678631,184.01,183.92,133.54]
[1755778481073,3.94559771,184.0,183.92,133.54]
[1755778481278,3.94559771,183.99,183.92,133.54]
[1755778481479,3.94559771,183.98,183.92,133.54]
[1755778481684,2.36678631,184.01,183.92,133.54]
[1755778481984,3.94494511,184.0,183.95,5.4363]
[1755778482284,6.83494511,183.99,183.95,8.4563]
[1755778482479,3.94494511,183.98,183.93,3.02]
[1755778482685,2.89,184.03,183.93,3.02]
[1755778482884,3.94467478,184.02,183.98,5.4356]
[1755778483183,3.94467478,184.01,183.98,3.02]
[1755778483383,3.94467478,184.0,183.98,3.02]
[1755778483586,2.89,184.02,183.95,3.02]
[1755778483783,2.89,184.06,183.98,3.02]
[1755778483979,3.94387648,184.05,184.0,5.38678631]
[1755778484178,3.94387648,184.04,184.02,3.02]
[1755778484380,2.89,184.09,184.02,3.02]
[1755778484579,6.83447037,184.08,184.04,8.4536]
[1755778484777,3.94447037,184.07,184.04,8.4536]
[1755778484981,3.94447037,184.06,184.04,8.4536]
[1755778485183,3.94447037,184.05,184.04,5.4336]
[1755778485986,3.94447037,184.05,184.03,5.434]
[1755778486185,3.94447037,184.04,184.03,8.454]
[1755778486388,3.94447037,184.07,184.01,3.02]
[1755778486588,3.94447037,184.06,184.0,135.92678631]
[1755778486889,3.94447037,184.05,184.03,5.434]
[1755778487190,3.94447037,184.04,184.03,8.454]
[1755778487386,3.94447037,184.04,184.0,138.94678631]
[1755778487586,2.89,184.05,184.02,5.4344]
[1755778487887,3.94480607,184.04,184.0,3.02]
[1755778488090,2.89,184.05,184.0,3.02]
[1755778488289,3.94478334,184.04,184.01,5.4345]
[1755778488590,2.89,184.05,184.01,3.02]
[1755778488888,3.94478527,184.04,184.02,5.4343]
[1755778489090,2.89,184.05,184.02,5.4343]
[1755778489286,3.94478527,184.04,184.01,5.4345]
[1755778489486,2.89,184.08,184.01,5.4345]
[1755778489685,2.89,184.06,184.01,5.4345]
[1755778489991,6.83537667,184.05,184.01,5.4345]
[1755778490290,3.94537667,184.04,184.02,8.4544]
[1755778490491,2.89,184.05,184.02,3.02]
[1755778490789,3.94612853,184.04,184.0,3.02]
[1755778490990,3.9459644,184.03,184.0,8.4549]
[1755778491190,2.89,184.03,184.0,8.4549]
[1755778491990,6.83607235,184.02,183.94,120.9205968]
[1755778492285,6.83607235,184.02,183.95,133.54]
[1755778492286,3.94607235,184.01,183.95,133.54]
[1755778492592,6.83607235,184.0,183.96,8.456]
[1755778492790,2.89,184.0,183.96,8.456]
[1755778492986,2.89,184.0,183.97,8.4358]
[1755778493292,5.41678631,184.03,183.96,3.0]
[1755778493486,3.94578124,184.02,183.96,3.0]
[1755778493685,3.94578124,184.01,183.97,3.0]
[1755778493883,3.94578124,184.0,183.98,8.4354]
[1755778494084,3.05,184.03,183.95,133.54]
[1755778494289,3.05,184.07,183.98,3.0]
[1755778494489,2.36678631,184.08,184.01,5.4345]
[1755778494490,3.05,184.05,184.01,5.4345]
[1755778494690,3.94674184,184.04,184.01,8.4345]
[1755778495493,3.94674184,184.04,183.97,2.36678631]
[1755778495494,3.94674184,184.04,184.02,8.4344]
[1755778495987,3.94674184,184.03,184.02,8.4344]
[1755778496187,3.94674184,184.03,184.01,5.4347]
[1755778496393,3.05,184.05,184.01,3.0]
[1755778496589,3.94687769,184.04,183.99,2.36678631]
[1755778496790,3.05,184.09,184.0,3.0]
[1755778496993,3.94705226,184.08,184.0,3.0]
[1755778497190,3.94705226,184.07,184.0,3.0]
[1755778497389,3.94705226,184.06,184.0,3.0]
[1755778497585,3.94705226,184.05,184.01,3.0]
[1755778497893,3.05,184.09,184.01,3.0]
[1755778498089,3.94710134,184.08,184.01,3.0]
[1755778498389,3.94710134,184.07,184.01,3.0]
[1755778498695,6.99710134,184.06,183.99,2.36678631]
[1755778498892,3.94710134,184.05,184.0,3.0]
[1755778499092,3.94710134,184.04,184.02,5.4342]
[1755778499292,3.05,184.09,184.01,3.0]
[1755778499495,2.36678631,184.06,183.98,133.52]
[1755778499688,2.36678631,184.04,183.98,138.9555]
[1755778499893,3.05,184.02,183.99,3.0]
[1755778500093,3.9466979,184.01,184.0,5.435]
[1755778500395,3.94616159,184.01,183.99,3.0]
[1755778500589,3.94652682,184.0,183.99,5.4354]
[1755778500894,6.99652682,184.0,183.94,120.9205968]
[1755778501090,3.05,183.98,183.94,123.9205968]
[1755778501490,5.41678631,184.0,183.95,3.0]
[1755778501793,3.94825731,183.99,183.95,3.0]
[1755778501993,3.94825731,183.98,183.96,5.4363]
[1755778502196,5.41678631,184.0,183.96,5.4363]
[1755778502492,6.99904474,183.99,183.95,8.4364]
[1755778502794,3.94904474,183.98,183.95,8.4364]
[1755778502996,3.05,183.99,183.95,8.4364]
[1755778503197,3.94843829,183.98,183.95,8.4364]
[1755778503386,2.36678631,184.03,183.95,3.0]
[1755778503587,6.99840303,184.02,183.95,3.0]
[1755778503790,3.05,184.0,183.94,120.9205968]
[1755778504097,3.05,183.98,183.95,5.4365]
[1755778504993,3.05,184.0,183.94,126.3574968]
[1755778505190,3.05,183.97,183.94,120.9205968]
[1755778505996,5.41678631,184.01,183.94,123.9205968]
[1755778506196,3.94670239,184.0,183.94,123.9205968]
[1755778506390,6.99670239,183.99,183.94,123.9205968]
[1755778506593,6.99670239,183.98,183.94,123.9205968]
[1755778506796,3.94670239,183.97,183.94,123.9205968]
[1755778507702,3.94670239,183.97,183.95,5.4365]
[1755778508001,5.41678631,184.04,183.96,3.0]
[1755778508197,3.94515413,184.03,183.96,136.52]
[1755778508393,3.94515413,184.02,183.96,136.52]
[1755778508700,3.94515413,184.01,183.96,133.52]
[1755778508898,5.41678631,184.07,183.98,3.0]
[1755778509197,6.99597957,184.06,184.01,8.4346]
[1755778509497,6.99597957,184.06,183.89,10.8769]
[1755778509498,2.36678631,184.03,183.93,136.52]
[1755778509694,3.94597957,184.02,183.94,3.0]
[1755778509894,3.94597957,184.01,183.94,3.0]
[1755778510093,3.94597957,184.0,183.94,3.0]
[1755778510297,3.94597957,183.99,183.93,133.52]
[1755778510493,2.36678631,184.05,183.96,3.0]
[1755778510692,3.94637618,184.04,183.96,3.0]
[1755778510893,3.94637618,184.03,183.96,3.0]
[1755778511105,3.94637618,184.02,184.01,5.4348]
[1755778511493,3.94637618,184.02,184.01,8.4348]
[1755778515100,3.05,184.07,184.01,3.0]
[1755778515400,3.05,184.07,184.03,3.0]
[1755778515401,3.94644709,184.06,184.03,3.0]
[1755778515592,3.94644709,184.05,184.03,3.0]
[1755778515794,3.94644709,184.04,184.03,8.4341]
[1755778516502,3.94644709,184.04,184.02,5.4345]
[1755778516797,3.05,184.07,183.99,5.36678631]
[1755778516999,3.94561785,184.06,183.99,5.36678631]
[1755778517200,3.94561785,184.05,183.99,5.36678631]
[1755778517396,3.94561785,184.04,183.99,2.36678631]
[1755778517599,3.05,184.07,184.0,3.0]
[1755778517801,3.94642265,184.06,184.0,3.0]
[1755778518000,3.94642265,184.05,184.01,3.0]
[1755778518197,3.94642265,184.04,184.02,3.0]
[1755778518402,3.05,184.06,184.02,8.4344]
[1755778518601,3.9462045,184.05,184.02,8.4344]
[1755778518803,3.9462045,184.04,184.02,8.4344]
[1755778519000,3.05,184.08,184.01,5.4348]
[1755778519307,2.36678631,184.09,184.01,5.4348]
[1755778519308,3.05,184.05,184.01,5.4348]
[1755778519602,6.99603582,184.04,184.01,5.4348]
[1755778519797,3.9458418,184.03,184.01,8.4348]
[1755778519998,3.05,184.08,184.02,5.4346]
[1755778520304,3.05,184.06,184.02,8.4346]
[1755778520504,3.94616414,184.05,184.04,8.434]
[1755778520896,3.94616414,184.08,184.04,8.434]
[1755778521100,3.94616414,184.07,184.04,8.434]
[1755778521301,3.94616414,184.06,184.04,3.0]
[1755778521500,3.94616414,184.05,184.04,3.0]
[1755778521700,6.99616414,184.08,184.04,3.0]
[1755778521910,3.94616414,184.07,184.05,3.0]
[1755778522109,3.94616414,184.07,184.02,3.0]
[1755778522406,5.41678631,184.11,184.05,5.4335]
[1755778522604,3.94559371,184.1,184.04,3.08]
[1755778522806,3.94559371,184.09,184.06,5.4331]
[1755778523009,3.94559371,184.08,184.06,3.08]
[1755778523212,3.94559371,184.07,184.06,3.08]
[1755778523410,3.94559371,184.07,184.03,5.44678631]
[1755778523615,2.36678631,184.13,184.06,5.4334]
[1755778523811,3.94359785,184.12,184.06,5.4334]
[1755778524113,2.95,184.09,184.06,5.4334]
[1755778524314,3.94359785,184.08,184.06,5.4334]
[1755778524516,6.89359785,184.07,184.01,3.08]
[1755778524718,3.94359785,184.06,184.01,3.08]
[1755778524914,3.9427615,184.05,183.99,2.36678631]
[1755778525218,6.8927615,184.04,183.96,2.36678631]
[1755778525411,3.9427615,184.03,183.96,2.36678631]
[1755778525818,3.9427615,184.03,183.95,3.08]
[1755778526319,2.95,184.02,183.98,5.4356]
[1755778526515,2.95,184.01,183.98,5.4356]
[1755778526713,2.95,184.02,183.96,5.4362]
[1755778526916,6.30975,184.01,183.96,5.4362]
[1755778527116,2.95,183.98,183.96,5.4362]
[1755778528017,2.95,183.97,183.95,5.4366]
[1755778528213,2.95,183.97,183.93,133.52]
[1755778528917,2.95,183.97,183.93,136.6]
[1755778529221,5.31678631,184.01,183.93,136.6]
[1755778529524,3.94109395,184.0,183.93,136.6]
[1755778529821,3.94109395,183.99,183.98,5.4356]
[1755778530019,6.89109395,184.0,183.93,136.6]
[1755778530217,3.94109395,183.99,183.98,5.4358]
[1755778530823,6.89109395,183.99,183.98,5.4358]
[1755778531917,6.89109395,183.99,183.93,136.6]
[1755778531918,6.30788026,183.99,183.93,133.52]
[1755778532121,5.31678631,183.97,183.9,3.08]
[1755778532323,3.94109395,183.96,183.9,3.08]
[1755778533313,2.95,183.95,183.92,5.4373]
[1755778534221,2.95,183.95,183.93,5.4372]
[1755778534914,5.31678631,183.97,183.93,5.4372]
[1755778535115,6.88946573,183.96,183.93,5.4372]
[1755778535323,3.93946573,183.95,183.93,5.4372]
[1755778535622,2.95,183.96,183.93,5.4372]
[1755778535829,3.93867398,183.95,183.93,5.4372]
[1755778536024,5.31678631,184.0,183.89,5.44678631]
[1755778536322,3.93883675,183.99,183.9,3.08]
[1755778536522,3.93883675,183.98,183.9,3.08]
[1755778536718,3.93883675,183.97,183.9,3.08]
[1755778536923,2.36678631,184.0,183.9,3.08]
[1755778537123,5.31678631,184.07,183.97,3.08]
[1755778537321,2.95,184.05,183.98,5.4355]
[1755778537523,2.95,184.03,183.94,136.64]
[1755778537723,3.9392916,184.02,183.94,136.64]
[1755778537925,3.9392916,184.01,183.94,136.64]
[1755778538125,3.9392916,184.0,183.98,5.4356]
[1755778538425,2.95,184.03,183.94,136.64]
[1755778538626,3.93867665,184.02,183.98,5.4357]
[1755778538828,6.88867665,184.01,183.98,5.4357]
[1755778539125,3.93867665,184.0,183.98,5.4357]
[1755778539325,2.95,184.01,183.97,8.516]
[1755778539527,3.93875954,184.0,183.97,8.516]
[1755778539728,2.95,184.01,183.97,8.516]
[1755778539918,3.93876286,184.0,183.97,8.516]
[1755778540124,2.95,184.01,183.97,8.516]
[1755778540424,3.93876286,184.0,183.97,8.516]
[1755778540624,2.95,184.01,183.97,8.516]
[1755778540825,3.9388963,184.0,183.97,8.516]
[1755778541025,2.95,184.01,183.97,8.516]
[1755778541326,3.93882523,184.0,183.97,8.516]
[1755778541528,2.95,184.01,183.97,8.516]
[1755778541831,2.36678631,184.05,183.93,3.08]
[1755778541832,9.25584273,184.0,183.93,3.08]
[1755778542025,3.93905642,183.99,183.93,3.08]
[1755778542230,2.95,183.97,183.93,8.5171]
[1755778543230,2.95,183.97,183.93,5.4371]
[1755778543825,2.95,183.97,183.93,8.5171]
[1755778544330,2.95,184.01,183.94,3.08]
[1755778544532,3.93897145,184.0,183.94,3.08]
[1755778544731,2.95,184.04,183.94,3.08]
[1755778544925,2.95,184.04,183.97,5.436]
[1755778544926,3.93913328,184.03,183.97,5.436]
[1755778545125,6.88913328,184.02,183.97,8.516]
[1755778545320,6.88913328,184.01,183.97,8.516]
[1755778545630,3.93913328,184.0,183.97,3.08]
[1755778545830,6.88913328,184.0,183.93,5.44678631]
[1755778546032,2.95,184.0,183.93,5.44678631]
[1755778546427,2.95,184.0,183.95,8.5165]
[1755778546629,2.95,184.0,183.96,3.08]
[1755778548431,2.36678631,184.02,183.91,5.44678631]
[1755778548634,2.95,183.98,183.91,3.08]
[1755778548930,3.93770801,183.97,183.91,3.08]
[1755778549127,6.88770801,183.96,183.91,3.08]
[1755778549331,2.95,183.96,183.91,3.08]
[1755778549531,2.95,183.98,183.91,3.08]
[1755778549731,3.93708175,183.97,183.91,3.08]
[1755778550032,2.95,183.95,183.9,5.438]
[1755778550432,2.95,183.95,183.9,8.518]
[1755778550732,2.95,184.0,183.92,3.08]
[1755778550932,3.93670908,183.99,183.92,3.08]
[1755778551129,3.93670908,183.98,183.92,3.08]
[1755778551431,2.95,184.0,183.94,5.4368]
[1755778551629,2.95,183.98,183.94,5.4368]
[1755778551927,2.95,183.98,183.94,8.5168]
[1755778554134,2.36678631,184.02,183.95,8.4666]
[1755778554135,5.43678631,184.02,183.95,8.4666]
[1755778554335,3.93577026,184.01,183.95,8.4666]
[1755778554636,3.93577026,184.0,183.94,3.03]
[1755778554835,3.93577026,183.99,183.97,3.03]
[1755778555137,3.07,184.03,183.97,3.03]
[1755778555330,7.0060833,184.02,183.97,8.4659]
[1755778555525,3.9360833,184.01,183.94,3.03]
[1755778555935,3.07,184.02,183.94,3.03]
[1755778556132,3.93643944,184.01,183.94,3.03]
[1755778556334,3.07,184.02,183.98,3.03]
[1755778556532,3.93649648,184.01,183.98,3.03]
[1755778556732,3.07,184.02,183.98,3.03]
[1755778556934,3.93649648,184.01,183.97,5.4359]
[1755778557134,3.07,184.04,183.97,5.4359]
[1755778557335,3.93649316,184.03,183.96,5.4363]
[1755778557636,3.93649316,184.02,183.96,5.4363]
[1755778557836,3.07,184.0,183.96,5.4363]
[1755778558335,3.07,184.0,183.97,5.436]
[1755778558730,3.07,184.0,183.95,3.03]
[1755778559233,3.07,184.0,183.96,5.4361]